[Event "BL 2018-19"]
[Site "Berlin"]
[Date "2019.03.01"]
[Round "9.16"]
[White "Coenen, Michael"]
[Black "Wegerle, Joerg"]
[Result "1/2-1/2"]
[ECO "E06"]
[WhiteElo "2364"]
[BlackElo "2409"]
[Annotator "NA"]
[PlyCount "89"]
[EventDate "2018.11.10"]
[EventType "team-tourn"]
[EventCountry "GER"]
[SourceTitle "playchess.com"]
[Source "ChessBase"]
[SourceQuality "1"]
[WhiteTeam "Duesseldorf"]
[BlackTeam "Solingen"]
[TimeControl "40/6000+30:3000+30"]

1. d4 {[%emt 0:00:00]} d5 {[%emt 0:00:00]} 2. c4 {[%emt 0:00:00]} e6 {[%emt 0:00:11]} 3. Nf3 {[%emt 0:00:00]} Be7 {[%emt 0:00:34]} 4. g3 {[%emt 0:00:00]} Nf6 {[%emt 0:00:36]} 5. Bg2 {[%emt 0:00:15]} O-O {[%emt 0:00:24]} 6. O-O {[%emt 0:01:34]} b6 {[%emt 0:04:29]} 7. cxd5 {[%emt 0:02:04]} exd5 {[%emt 0:01:50]} 8. Nc3 {[%emt 0:00:06]} Bb7 {[%emt 0:01:32]} 9. Ne5 {[%emt 0:00:12]} Nbd7 {[%emt 0:01:36]} 10. Qa4 {[%emt 0:00:07]} Nb8 {[%emt 0:13:52]} 11. Bg5 {[%emt 0:08:20]} c6 {[%emt 0:12:46]} 12. Rfd1 {[%emt 0:13:02]} Nfd7 {[%emt 0:21:49]} 13. Bxe7 {[%emt 0:14:01]} Qxe7 {[%emt 0:00:24]} 14. Nxd7 {[%emt 0:01:14]} Nxd7 {[%emt 0:03:46]} 15. e4 {[%emt 0:01:37]} dxe4 {[%emt 0:06:46]} 16. Bxe4 {[%emt 0:03:07]} Rfc8 {[%emt 0:02:08]} 17. Re1 {[%emt 0:11:10]} Qd8 {[%emt 0:04:06]} 18. Bg2 {[%emt 0:16:23]} Nf6 {[%emt 0:01:23]} 19. Re5 {[%emt 0:01:29]} Rc7 {[%emt 0:07:52]} 20. Rae1 {[%emt 0:09:49]} h6 {[%emt 0:07:11]} 21. R5e3 {[%emt 0:06:25]} Rd7 {[%emt 0:02:42]} 22. Qb3 {[%emt 0:04:11]} Qf8 {[%emt 0:01:59]} 23. Qc4 {[%emt 0:02:10]} Rad8 {[%emt 0:01:19]} 24. Ne2 {[%emt 0:01:41]} c5 {[%emt 0:05:08]} 25. dxc5 {[%emt 0:01:31]} Bxg2 {[%emt 0:00:26]} 26. Kxg2 {[%emt 0:00:20]} Qxc5 {[%emt 0:00:20]} 27. Qxc5 {[%emt 0:01:45]} bxc5 {[%emt 0:00:02]} 28. Nc3 {[%emt 0:00:52]} Rd2 {[%emt 0:01:12]} 29. R1e2 {[%emt 0:00:36]} Kf8 {[%emt 0:00:46]} 30. h3 {[%emt 0:03:03]} a6 {[%emt 0:02:05]} 31. Kf1 {[%emt 0:04:07]} c4 {[%emt 0:02:27]} 32. Re5 {[%emt 0:01:06]} g6 {[%emt 0:02:54]} 33. Rc5 {[%emt 0:02:24]} R2d4 {[%emt 0:00:44]} 34. Rc6 {[%emt 0:01:30]} R8d6 {[%emt 0:00:15]} 35. Rc8+ {[%emt 0:00:33]} Kg7 {[%emt 0:00:59]} 36. Re7 {[%emt 0:00:34]} Nd5 {[%emt 0:00:32]} 37. Nxd5 {[%emt 0:00:31]} R6xd5 {[%emt 0:00:05]} 38. Re2 {[%emt 0:00:32]} a5 {[%emt 0:01:10]} 39. Rc2 {[%emt 0:00:26]} Rb5 {[%emt 0:00:16]} 40. Ke2 {[%emt 0:00:32]} Kf6 {[%emt 0:00:29]} 41. Rc6+ {[%emt 0:00:41]} Ke7 {[%emt 0:06:09]} 42. Ke3 {[%emt 0:07:48]} Rd3+ {[%emt 0:01:36]} 43. Ke2 {[%emt 0:00:31]} Rd4 {[%emt 0:00:14]} 44. Ke3 {[%emt 0:00:05]} Rd3+ {[%emt 0:00:06]} 45. Ke2 {[%emt 0:00:07]} 1/2-1/2

[Event "BL 2018-19"]
[Site "Berlin"]
[Date "2019.03.01"]
[Round "9.17"]
[White "Salgado Lopez, Ivan"]
[Black "Grandelius, Nils"]
[Result "1/2-1/2"]
[ECO "D31"]
[WhiteElo "2624"]
[BlackElo "2678"]
[Annotator "ChessBase"]
[PlyCount "55"]
[EventDate "2018.11.10"]
[EventType "team-tourn"]
[EventCountry "GER"]
[SourceTitle "playchess.com"]
[Source "ChessBase"]
[SourceQuality "1"]
[WhiteTeam "Kiel"]
[BlackTeam "Hamburg SK"]
[TimeControl "40/6000+30:3000+30"]

1. d4 d5 {[%emt 0:03:00]} 2. c4 {[%emt 0:00:00]} e6 {[%emt 0:00:22]} 3. Nc3 {[%emt 0:00:00]} a6 {[%emt 0:00:58]} 4. cxd5 {[%emt 0:00:22]} exd5 {[%emt 0:00:06]} 5. Nf3 {[%emt 0:00:08]} h6 {[%emt 0:01:23]} 6. Bf4 {[%emt 0:00:33]} Nf6 {[%emt 0:01:30]} 7. e3 {[%emt 0:00:28]} Bd6 {[%emt 0:00:08]} 8. h3 {[%emt 0:00:17]} Bxf4 {[%emt 0:05:27]} 9. exf4 {[%emt 0:00:12]} O-O {[%emt 0:00:05]} 10. Bd3 {[%emt 0:00:21]} Re8+ {[%emt 0:00:08]} 11. Ne2 {[%emt 0:01:13]} c5 {[%emt 0:05:05]} 12. dxc5 {[%emt 0:05:38]} Qa5+ {[%emt 0:00:53]} 13. Qd2 {[%emt 0:02:50]} Qxc5 {[%emt 0:00:16]} 14. Rc1 {[%emt 0:05:56]} Qb6 {[%emt 0:00:48]} 15. O-O {[%emt 0:00:50]} Nc6 {[%emt 0:02:28]} 16. Bb1 {[%emt 0:18:21]} Bd7 {[%emt 0:12:52]} 17. b3 {[%emt 0:08:41]} Rad8 {[%emt 0:09:03]} 18. Ned4 Ne4 {[%emt 0:02:53]} 19. Qb2 {[%emt 0:13:11]} Nxd4 {[%emt 0:15:55]} 20. Qxd4 {[%emt 0:02:21]} Qxd4 {[%emt 0:00:09]} 21. Nxd4 {[%emt 0:00:09]} Rc8 {[%emt 0:00:10]} 22. f3 {[%emt 0:13:32]} Nc3 {[%emt 0:04:38]} 23. Kf2 Kf8 {[%emt 0:08:26]} 24. Rfe1 {[%emt 0:08:53]} Rxe1 {[%emt 0:03:27]} 25. Kxe1 {[%emt 0:03:31]} Nxb1 {[%emt 0:02:18]} 26. Rxb1 {[%emt 0:00:13]} Ke7 {[%emt 0:00:03]} 27. Kd2 {[%emt 0:01:36]} Kd6 28. Re1 {[%emt 0:07:02] Ke5} 1/2-1/2

[Event "BL 2018-19"]
[Site "Berlin"]
[Date "2019.03.01"]
[Round "9.18"]
[White "Vitiugov, Nikita"]
[Black "Kryvoruchko, Yuriy"]
[Result "1/2-1/2"]
[ECO "A28"]
[WhiteElo "2719"]
[BlackElo "2698"]
[Annotator "RC"]
[PlyCount "59"]
[EventDate "2018.11.10"]
[EventType "team-tourn"]
[EventCountry "GER"]
[SourceTitle "playchess.com"]
[Source "ChessBase"]
[SourceQuality "1"]
[WhiteTeam "Hockenheim"]
[BlackTeam "Viernheim"]
[TimeControl "40/6000+30:3000+30"]

1. c4 {[%emt 0:00:00]} Nf6 {[%emt 0:00:00]} 2. Nc3 {[%emt 0:00:01]} e5 {[%emt 0:00:00]} 3. Nf3 {[%emt 0:00:08]} Nc6 {[%emt 0:00:00]} 4. e3 {[%emt 0:00:26]} Bb4 {[%emt 0:00:28]} 5. Qc2 {[%emt 0:00:12]} Bxc3 {[%emt 0:00:42]} 6. Qxc3 {[%emt 0:03:04]} Qe7 {[%emt 0:00:22]} 7. Be2 {[%emt 0:00:20]} O-O {[%emt 0:03:54]} 8. d4 {[%emt 0:00:39]} Ne4 {[%emt 0:02:03]} 9. Qc2 {[%emt 0:04:27]} exd4 {[%emt 0:00:07]} 10. exd4 {[%emt 0:00:54]} Qb4+ {[%emt 0:18:45]} 11. Bd2 {[%emt 0:04:03]} Nxd2 {[%emt 0:00:10]} 12. Qxd2 {[%emt 0:00:03]} Qxd2+ {[%emt 0:07:49]} 13. Kxd2 {[%emt 0:00:15]} d6 {[%emt 0:00:03]} 14. h3 {[%emt 0:13:03]} Bd7 {[%emt 0:03:34]} 15. Rhe1 {[%emt 0:03:26]} Rfe8 {[%emt 0:02:05]} 16. Bd3 {[%emt 0:03:02]} Rxe1 {[%emt 0:09:04]} 17. Rxe1 {[%emt 0:00:19]} Re8 {[%emt 0:00:04]} 18. Rc1 {[%emt 0:12:04]} Ne7 19. b4 a6 {[%emt 0:17:21]} 20. Rc3 {[%emt 0:12:10]} c6 {[%emt 0:04:48]} 21. a4 {[%emt 0:04:43]} f6 {[%emt 0:03:40]} 22. Ra3 {[%emt 0:09:16]} Be6 {[%emt 0:05:39]} 23. Ne1 {[%emt 0:03:43]} Kf7 {[%emt 0:04:40]} 24. Nc2 {[%emt 0:01:46]} Ra8 {[%emt 0:00:20]} 25. Na1 {[%emt 0:05:03]} a5 {[%emt 0:03:30]} 26. bxa5 {[%emt 0:01:47]} Rxa5 {[%emt 0:00:08]} 27. Nb3 {[%emt 0:00:16]} Ra7 {[%emt 0:01:57]} 28. Kc3 {[%emt 0:01:36]} b6 {[%emt 0:01:36]} 29. a5 {[%emt 0:05:46]} c5 {[%emt 0:02:40]} 30. Be4 {[%emt 0:11:51]} 1/2-1/2

[Event "BL 2018-19"]
[Site "Berlin"]
[Date "2019.03.01"]
[Round "9.19"]
[White "Amin, Bassem"]
[Black "Cheparinov, Ivan"]
[Result "1/2-1/2"]
[ECO "B51"]
[WhiteElo "2709"]
[BlackElo "2709"]
[Annotator "ChessBase"]
[PlyCount "126"]
[EventDate "2018.11.10"]
[EventType "team-tourn"]
[EventCountry "GER"]
[SourceTitle "playchess.com"]
[Source "ChessBase"]
[SourceQuality "1"]
[WhiteTeam "Viernheim"]
[BlackTeam "Hockenheim"]
[TimeControl "40/6000+30:3000+30"]

1. e4 c5 2. Nf3 {[%emt 0:00:30]} d6 {[%emt 0:00:00]} 3. Bb5+ {[%emt 0:00:38]} Nd7 {[%emt 0:00:00]} 4. O-O {[%emt 0:00:30]} a6 {[%emt 0:00:00]} 5. Bd3 {[%emt 0:00:06]} Ngf6 6. Re1 {[%emt 0:00:02]} e6 {[%emt 0:00:18]} 7. c3 {[%emt 0:00:11]} b5 {[%emt 0:00:10]} 8. Bc2 {[%emt 0:00:30]} c4 {[%emt 0:00:06]} 9. a4 {[%emt 0:01:18]} Bb7 {[%emt 0:00:30]} 10. d4 {[%emt 0:00:30]} cxd3 {[%emt 0:00:00]} 11. Qxd3 {[%emt 0:00:00]} Nc5 {[%emt 0:00:00]} 12. Qe2 {[%emt 0:00:09]} bxa4 {[%emt 0:00:01]} 13. Be3 {[%emt 0:00:16]} Nfd7 {[%emt 0:07:44]} 14. Bxc5 {[%emt 0:00:13]} Nxc5 {[%emt 0:03:16]} 15. Rxa4 {[%emt 0:00:30]} Be7 {[%emt 0:00:30]} 16. Rd4 {[%emt 0:04:51]} Qc7 {[%emt 0:24:54]} 17. e5 {[%emt 0:00:30]} d5 {[%emt 0:00:30]} 18. Nbd2 {[%emt 0:00:30]} a5 {[%emt 0:00:30]} 19. Rg4 {[%emt 0:00:30]} Ba6 {[%emt 0:00:30]} 20. Qe3 {[%emt 0:00:30]} g6 {[%emt 0:00:30]} 21. Nd4 {[%emt 0:00:30]} Rb8 {[%emt 0:00:30]} 22. b3 {[%emt 0:00:30]} Nd7 {[%emt 0:00:30]} 23. Rg3 {[%emt 0:00:30]} Rc8 {[%emt 0:00:30]} 24. Rf3 {[%emt 0:00:30]} Bc5 {[%emt 0:00:30]} 25. Qf4 {[%emt 0:00:30]} Rf8 {[%emt 0:00:30]} 26. Rfe3 {[%emt 0:00:30]} g5 {[%emt 0:00:30]} 27. Qg4 {[%emt 0:00:30]} h5 {[%emt 0:00:30]} 28. Qxh5 {[%emt 0:00:30]} Bxd4 {[%emt 0:00:30]} 29. cxd4 {[%emt 0:00:30]} Qxc2 {[%emt 0:00:30]} 30. Nf3 {[%emt 0:00:30]} Qg6 {[%emt 0:00:30]} 31. Qxg6 {[%emt 0:00:30]} fxg6 {[%emt 0:00:30]} 32. Nxg5 {[%emt 0:00:30]} Ke7 {[%emt 0:00:30]} 33. Rh3 {[%emt 0:00:30]} Rh8 {[%emt 0:00:30]} 34. Rf3 {[%emt 0:00:30]} Rhf8 {[%emt 0:00:30]} 35. Rh3 {[%emt 0:00:30]} Rh8 {[%emt 0:00:30]} 36. Rf3 {[%emt 0:00:30]} Rh5 {[%emt 0:00:30]} 37. h4 {[%emt 0:00:30]} Rf8 {[%emt 0:00:30]} 38. Rxf8 {[%emt 0:00:30]} Nxf8 {[%emt 0:00:30]} 39. g3 {[%emt 0:00:30]} Nd7 {[%emt 0:00:30]} 40. Rc1 {[%emt 0:00:30]} a4 {[%emt 0:00:30]} 41. bxa4 {[%emt 0:50:30]} Bc4 {[%emt 0:50:30]} 42. Rc3 {[%emt 0:00:30]} Rh8 {[%emt 0:00:30]} 43. Rf3 {[%emt 0:00:30]} Rf8 {[%emt 0:00:30]} 44. Rxf8 {[%emt 0:00:30]} Nxf8 {[%emt 0:00:30]} 45. g4 {[%emt 0:00:30]} Nd7 {[%emt 0:00:30]} 46. f3 {[%emt 0:00:30]} Nb8 {[%emt 0:00:30]} 47. h5 {[%emt 0:00:30]} gxh5 {[%emt 0:00:30]} 48. gxh5 {[%emt 0:00:30]} Nc6 {[%emt 0:00:30]} 49. h6 {[%emt 0:00:30]} Kf8 {[%emt 0:00:30]} 50. Nxe6+ {[%emt 0:00:30]} Kg8 {[%emt 0:00:30]} 51. f4 {[%emt 0:00:30]} Bd3 {[%emt 0:41:41]} 52. Kf2 {[%emt 0:50:49]} Bf5 {[%emt 0:00:17]} 53. Nc7 {[%emt 0:10:00]} Nxd4 {[%emt 0:00:53]} 54. Nxd5 {[%emt 0:03:15]} Kh7 {[%emt 0:00:30]} 55. Ne7 {[%emt 0:00:30]} Bd7 {[%emt 0:01:06]} 56. a5 {[%emt 0:01:11]} Bb5 {[%emt 0:08:11]} 57. f5 {[%emt 0:04:46]} Kxh6 {[%emt 0:06:46]} 58. f6 {[%emt 0:05:14]} Nb3 {[%emt 0:00:54]} 59. Ke3 {[%emt 0:03:17]} Nxa5 60. e6 {[%emt 0:00:31]} Be8 {[%emt 0:02:12]} 61. Kd4 {[%emt 0:00:30]} Nb7 {[%emt 0:02:18]} 62. Ke5 {[%emt 0:05:47]} Nd8 {[%emt 0:00:56]} 63. Nd5 {[%emt 0:08:00]} Kg6 {[%emt 0:00:07]} 1/2-1/2

[Event "BL 2018-19"]
[Site "Berlin"]
[Date "2019.03.01"]
[Round "9.19"]
[White "Glud, Jakob Vang"]
[Black "Kempinski, Robert"]
[Result "1/2-1/2"]
[ECO "A10"]
[WhiteElo "2548"]
[BlackElo "2574"]
[Annotator "RC"]
[PlyCount "57"]
[EventDate "2018.11.10"]
[EventType "team-tourn"]
[EventCountry "GER"]
[SourceTitle "playchess.com"]
[Source "ChessBase"]
[SourceQuality "1"]
[WhiteTeam "Kiel"]
[BlackTeam "Hamburg SK"]
[TimeControl "40/6000+30:3000+30"]

1. c4 {[%emt 0:00:00]} b6 {[%emt 0:00:48]} 2. Nf3 {[%emt 0:00:00]} Bb7 {[%emt 0:00:39]} 3. g3 {[%emt 0:00:00]} c5 {[%emt 0:01:44]} 4. Bg2 {[%emt 0:00:45]} Nf6 {[%emt 0:00:22]} 5. O-O {[%emt 0:01:31]} g6 {[%emt 0:00:31]} 6. b3 {[%emt 0:04:49]} Bg7 {[%emt 0:04:13]} 7. Bb2 {[%emt 0:00:06]} O-O {[%emt 0:01:40]} 8. Nc3 {[%emt 0:03:31]} d5 {[%emt 0:14:33]} 9. d4 {[%emt 0:07:31]} dxc4 {[%emt 0:07:36]} 10. dxc5 {[%emt 0:00:05]} Qxd1 {[%emt 0:06:25]} 11. Rfxd1 {[%emt 0:01:29]} cxb3 {[%emt 0:00:28]} 12. Nb5 {[%emt 0:14:40]} Nbd7 {[%emt 0:08:15]} 13. cxb6 {[%emt 0:02:10]} axb6 {[%emt 0:01:11]} 14. axb3 {[%emt 0:00:07]} Rxa1 {[%emt 0:02:36]} 15. Rxa1 {[%emt 0:01:58]} Ra8 {[%emt 0:01:09]} 16. Rxa8+ {[%emt 0:07:38]} Bxa8 {[%emt 0:00:00]} 17. Ba3 {[%emt 0:07:02]} Kf8 {[%emt 0:08:35]} 18. e3 {[%emt 0:08:20]} Bd5 {[%emt 0:05:23]} 19. Nd2 {[%emt 0:02:18]} Bxg2 {[%emt 0:00:50]} 20. Kxg2 {[%emt 0:00:12]} Nd5 {[%emt 0:01:39]} 21. Ne4 {[%emt 0:06:31]} Ne5 {[%emt 0:01:02]} 22. Kf1 {[%emt 0:00:16]} Nc6 {[%emt 0:04:06]} 23. Ke2 {[%emt 0:02:44]} Ke8 {[%emt 0:02:53]} 24. Kd3 {[%emt 0:02:21]} Kd7 {[%emt 0:00:51]} 25. Nd2 {[%emt 0:01:43]} Nc7 {[%emt 0:03:13]} 26. Nxc7 {[%emt 0:00:54]} Kxc7 {[%emt 0:00:08]} 27. e4 {[%emt 0:01:37]} b5 {[%emt 0:02:57]} 28. Bc5 {[%emt 0:01:09]} Be5 {[%emt 0:03:53]} 29. Nf3 {[%emt 0:04:43]} 1/2-1/2

[Event "BL 2018-19"]
[Site "Berlin"]
[Date "2019.03.01"]
[Round "9.20"]
[White "Fedoseev, Vladimir"]
[Black "Maze, Sebastien"]
[Result "1-0"]
[ECO "B33"]
[WhiteElo "2714"]
[BlackElo "2602"]
[Annotator "ChessBase"]
[PlyCount "95"]
[EventDate "2018.11.10"]
[EventType "team-tourn"]
[EventCountry "GER"]
[SourceTitle "playchess.com"]
[Source "ChessBase"]
[SourceQuality "1"]
[WhiteTeam "Hockenheim"]
[BlackTeam "Viernheim"]
[TimeControl "40/6000+30:3000+30"]

1. e4 {[%emt 0:00:00]} c5 {[%emt 0:00:00]} 2. Nf3 {[%emt 0:00:13]} Nc6 {[%emt 0:00:00]} 3. d4 {[%emt 0:00:54]} cxd4 {[%emt 0:00:00]} 4. Nxd4 {[%emt 0:00:05]} Nf6 {[%emt 0:00:06]} 5. Nc3 {[%emt 0:00:08]} e5 {[%emt 0:00:38]} 6. Ndb5 {[%emt 0:00:08]} d6 {[%emt 0:00:05]} 7. Bg5 {[%emt 0:00:55]} a6 {[%emt 0:00:15]} 8. Na3 {[%emt 0:00:05]} b5 {[%emt 0:00:11]} 9. Nd5 {[%emt 0:00:06]} Be7 {[%emt 0:00:05]} 10. Bxf6 {[%emt 0:00:09]} Bxf6 {[%emt 0:00:07]} 11. c3 {[%emt 0:00:08]} Bg5 {[%emt 0:00:50]} 12. Nc2 {[%emt 0:00:42]} Rb8 {[%emt 0:00:08]} 13. Be2 {[%emt 0:00:12]} O-O {[%emt 0:02:20]} 14. O-O {[%emt 0:00:14]} Be6 {[%emt 0:00:03]} 15. Qd3 {[%emt 0:12:36]} Ne7 {[%emt 0:22:16]} 16. Ncb4 {[%emt 0:01:58]} Qc8 {[%emt 0:02:49]} 17. Nxe7+ {[%emt 0:06:34]} Bxe7 {[%emt 0:00:03]} 18. Rfd1 {[%emt 0:08:08]} Qb7 {[%emt 0:10:34]} 19. Nd5 {[%emt 0:05:54]} Bxd5 {[%emt 0:03:48]} 20. Qxd5 {[%emt 0:00:08]} Qxd5 {[%emt 0:02:06]} 21. Rxd5 {[%emt 0:00:07]} Rfc8 {[%emt 0:00:28]} 22. a4 {[%emt 0:17:57]} bxa4 {[%emt 0:04:01]} 23. Bxa6 {[%emt 0:00:53]} Rc5 {[%emt 0:02:34]} 24. Rd2 {[%emt 0:13:12]} Bg5 {[%emt 0:00:25]} 25. Rc2 {[%emt 0:00:35]} Ra5 {[%emt 0:05:18]} 26. Bc4 {[%emt 0:00:04]} Bd8 {[%emt 0:00:11]} 27. Rd2 {[%emt 0:00:20]} Bc7 {[%emt 0:01:57]} 28. Kf1 {[%emt 0:03:11]} Kf8 {[%emt 0:01:28]} 29. Bd5 {[%emt 0:00:10]} Rab5 {[%emt 0:18:06]} 30. Ra2 {[%emt 0:00:13]} R5b6 {[%emt 0:00:15]} 31. Ke2 {[%emt 0:00:09]} Bd8 {[%emt 0:00:28]} 32. Kd1 {[%emt 0:01:06]} Bg5 {[%emt 0:01:59]} 33. Re2 {[%emt 0:00:11]} h5 {[%emt 0:12:22]} 34. Kc2 {[%emt 0:00:36]} h4 {[%emt 0:00:27]} 35. h3 {[%emt 0:01:48]} Bd8 {[%emt 0:03:21]} 36. Kb1 {[%emt 0:01:26]} Ra6 {[%emt 0:01:20]} 37. b4 {[%emt 0:00:32]} Bb6 {[%emt 0:00:33]} 38. Ra3 {[%emt 0:01:45]} Ke7 {[%emt 0:03:04]} 39. f3 {[%emt 0:00:20]} Kf6 {[%emt 0:10:21]} 40. Rea2 {[%emt 0:00:13]} Kg5 {[%emt 0:00:06]} 41. Bxf7 {[%emt 0:51:47]} Kf4 {[%emt 0:50:18]} 42. Rxa4 {[%emt 0:13:34]} Rxa4 {[%emt 0:00:09]} 43. Rxa4 {[%emt 0:00:04]} Kg3 {[%emt 0:00:05]} 44. Be6 {[%emt 0:00:10]} Kxg2 {[%emt 0:01:47]} 45. Bg4 {[%emt 0:00:33]} Kf2 {[%emt 0:03:26]} 46. Kc2 {[%emt 0:00:16]} Ke3 {[%emt 0:00:03]} 47. Ra1 {[%emt 0:04:27]} Rb7 {[%emt 0:01:29]} 48. Rd1 {[%emt 0:00:37]} 1-0

[Event "BL 2018-19"]
[Site "Berlin"]
[Date "2019.03.01"]
[Round "9.20"]
[White "Lampert, Jonas"]
[Black "Hector, Jonny"]
[Result "0-1"]
[ECO "C77"]
[WhiteElo "2547"]
[BlackElo "2495"]
[Annotator "ChessBase"]
[PlyCount "80"]
[EventDate "2018.11.10"]
[EventType "team-tourn"]
[EventCountry "GER"]
[SourceTitle "playchess.com"]
[Source "ChessBase"]
[SourceQuality "1"]
[WhiteTeam "Hamburg SK"]
[BlackTeam "Kiel"]
[TimeControl "40/6000+30:3000+30"]

1. e4 {[%emt 0:00:00]} e5 {[%emt 0:00:00]} 2. Nf3 {[%emt 0:00:00]} Nc6 {[%emt 0:00:00]} 3. Bb5 {[%emt 0:00:00]} a6 {[%emt 0:00:46]} 4. Ba4 {[%emt 0:00:00]} Nf6 {[%emt 0:00:59]} 5. Nc3 {[%emt 0:02:49]} Bc5 {[%emt 0:00:59]} 6. O-O {[%emt 0:02:37]} d6 {[%emt 0:04:38]} 7. Nd5 {[%emt 0:16:40]} O-O {[%emt 0:10:56]} 8. c3 {[%emt 0:17:50]} Nxd5 {[%emt 0:06:05]} 9. exd5 {[%emt 0:00:05]} Ne7 {[%emt 0:00:46]} 10. d4 {[%emt 0:13:39]} exd4 {[%emt 0:01:32]} 11. b4 {[%emt 0:01:15]} Ba7 {[%emt 0:06:15]} 12. c4 {[%emt 0:00:26]} b5 {[%emt 0:02:25]} 13. Bb3 {[%emt 0:06:09]} Bg4 {[%emt 0:11:21]} 14. cxb5 {[%emt 0:05:24]} axb5 {[%emt 0:01:24]} 15. h3 {[%emt 0:00:14]} Bxf3 {[%emt 0:02:39]} 16. Qxf3 {[%emt 0:00:02]} Ng6 {[%emt 0:03:03]} 17. Bb2 {[%emt 0:07:39]} f5 {[%emt 0:05:00]} 18. Rad1 {[%emt 0:05:05]} Qh4 {[%emt 0:04:17]} 19. Qg3 {[%emt 0:09:25]} Qf6 {[%emt 0:07:00]} 20. Rfe1 {[%emt 0:03:53]} Ne5 {[%emt 0:00:41]} 21. Qf4 {[%emt 0:02:34]} g5 {[%emt 0:02:32]} 22. Qd2 {[%emt 0:02:30]} g4 {[%emt 0:02:46]} 23. hxg4 {[%emt 0:01:07]} Qh4 {[%emt 0:08:39]} 24. Bxd4 {[%emt 0:02:07]} Bxd4 {[%emt 0:09:45]} 25. Qxd4 {[%emt 0:00:03]} Rae8 {[%emt 0:01:27]} 26. Bc2 {[%emt 0:04:37]} fxg4 {[%emt 0:02:07]} 27. Re4 {[%emt 0:01:15]} Rf6 {[%emt 0:00:44]} 28. Rd3 {[%emt 0:03:51]} Rh6 {[%emt 0:04:24]} 29. Kf1 {[%emt 0:00:03]} Rf8 {[%emt 0:01:59]} 30. Ke2 {[%emt 0:02:13]} Rhf6 {[%emt 0:00:34]} 31. Rg3 {[%emt 0:01:08]} h5 {[%emt 0:01:14]} 32. Qa7 {[%emt 0:00:48]} Nc4 {[%emt 0:01:20]} 33. Qd4 {[%emt 0:00:25]} Rxf2+ {[%emt 0:03:21]} 34. Qxf2 {[%emt 0:00:01]} Rxf2+ {[%emt 0:00:11]} 35. Kxf2 {[%emt 0:00:01]} Qf6+ {[%emt 0:00:27]} 36. Ke2 {[%emt 0:01:29]} Qb2 {[%emt 0:01:32]} 37. Kd1 {[%emt 0:00:24]} Na3 {[%emt 0:01:56]} 38. Bd3 {[%emt 0:00:31]} Nb1 {[%emt 0:01:08]} 39. Ke1 {[%emt 0:00:33]} Nc3 {[%emt 0:00:42]} 40. Re6 {[%emt 0:00:31]} Qc1+ {[%emt 0:00:40]} 0-1

[Event "BL 2018-19"]
[Site "Berlin"]
[Date "2019.03.01"]
[Round "9.21"]
[White "Kovalenko, Igor"]
[Black "Tomashevsky, Evgeny"]
[Result "1/2-1/2"]
[ECO "C65"]
[WhiteElo "2644"]
[BlackElo "2705"]
[Annotator "ChessBase"]
[PlyCount "119"]
[EventDate "2018.11.10"]
[EventType "team-tourn"]
[EventCountry "GER"]
[SourceTitle "playchess.com"]
[Source "ChessBase"]
[SourceQuality "1"]
[WhiteTeam "Viernheim"]
[BlackTeam "Hockenheim"]
[TimeControl "40/6000+30:3000+30"]

1. e4 {[%emt 0:00:00]} e5 {[%emt 0:00:00]} 2. Nf3 {[%emt 0:00:00]} Nc6 {[%emt 0:00:00]} 3. Bb5 {[%emt 0:00:01]} Nf6 {[%emt 0:00:16]} 4. d3 {[%emt 0:00:08]} Bc5 {[%emt 0:01:07]} 5. h3 {[%emt 0:07:45]} Nd4 {[%emt 0:07:48]} 6. Nxd4 {[%emt 0:00:28]} Bxd4 {[%emt 0:00:06]} 7. c3 {[%emt 0:00:09]} Bb6 {[%emt 0:01:06]} 8. Bg5 {[%emt 0:00:25]} h6 {[%emt 0:10:25]} 9. Bh4 {[%emt 0:00:06]} c6 {[%emt 0:00:31]} 10. Ba4 {[%emt 0:00:07]} d6 {[%emt 0:02:21]} 11. Nd2 {[%emt 0:00:25]} Be6 {[%emt 0:01:43]} 12. Bb3 {[%emt 0:03:43]} Qe7 {[%emt 0:04:25]} 13. Bxe6 {[%emt 0:05:43]} Qxe6 {[%emt 0:01:50]} 14. Nc4 {[%emt 0:01:19]} O-O {[%emt 0:10:10]} 15. Bxf6 {[%emt 0:32:39]} Qxf6 {[%emt 0:00:25]} 16. O-O {[%emt 0:00:04]} Bc7 {[%emt 0:13:15]} 17. Ne3 {[%emt 0:11:55]} g6 {[%emt 0:01:07]} 18. Qb3 {[%emt 0:07:03]} Rab8 {[%emt 0:02:24]} 19. Rad1 {[%emt 0:00:23]} h5 {[%emt 0:04:35]} 20. Rfe1 {[%emt 0:09:15]} Rfe8 {[%emt 0:01:29]} 21. Qc2 {[%emt 0:01:57]} Qe6 {[%emt 0:14:24]} 22. Qe2 {[%emt 0:07:30]} Rbd8 {[%emt 0:01:43]} 23. a3 {[%emt 0:01:07]} Bb6 {[%emt 0:03:26]} 24. Nc4 {[%emt 0:02:01]} Bc7 {[%emt 0:00:50]} 25. Nd2 {[%emt 0:00:49]} d5 {[%emt 0:02:36]} 26. Nf3 {[%emt 0:00:41]} dxe4 {[%emt 0:07:40]} 27. Qxe4 {[%emt 0:02:35]} Qb3 {[%emt 0:04:51]} 28. Qe2 {[%emt 0:03:42]} Kg7 {[%emt 0:02:01]} 29. Rd2 {[%emt 0:00:22]} Qd5 {[%emt 0:01:33]} 30. Qd1 {[%emt 0:01:06]} Re7 {[%emt 0:02:00]} 31. Qa4 {[%emt 0:01:53]} a6 {[%emt 0:01:47]} 32. Qh4 {[%emt 0:02:47]} Red7 {[%emt 0:03:41]} 33. d4 {[%emt 0:05:29]} exd4 {[%emt 0:01:01]} 34. Nxd4 {[%emt 0:00:01]} Kg8 {[%emt 0:03:03]} 35. Rde2 {[%emt 0:02:09]} Rf8 {[%emt 0:00:09]} 36. Nf3 {[%emt 0:00:53]} Qf5 {[%emt 0:00:54]} 37. Qb4 {[%emt 0:00:31]} a5 {[%emt 0:01:03]} 38. Qb3 {[%emt 0:00:34]} Qf6 {[%emt 0:00:37]} 39. Kf1 {[%emt 0:00:32]} Bf4 {[%emt 0:00:35]} 40. Re4 {[%emt 0:01:08]} Kg7 {[%emt 0:00:15]} 41. Qb6 {[%emt 0:50:21]} Bc7 {[%emt 0:07:57]} 42. Qe3 {[%emt 0:00:00]} Rfd8 {[%emt 0:03:22]} 43. Qe2 {[%emt 0:00:00]} Qd6 {[%emt 0:14:55]} 44. a4 {[%emt 0:00:00]} Qd3 {[%emt 0:02:07]} 45. Qxd3 {[%emt 0:00:00]} Rxd3 {[%emt 0:00:11]} 46. Ke2 {[%emt 0:00:00]} R3d5 {[%emt 0:01:46]} 47. Rb1 {[%emt 0:00:00]} Kf6 {[%emt 0:03:09]} 48. g4 {[%emt 0:00:00]} hxg4 {[%emt 0:05:04]} 49. hxg4 {[%emt 0:00:00]} R5d6 {[%emt 0:01:09]} 50. b4 {[%emt 0:00:00]} axb4 {[%emt 0:05:13]} 51. Rbxb4 {[%emt 0:00:00]} b6 {[%emt 0:00:51]} 52. Rbc4 {[%emt 0:00:00]} c5 {[%emt 0:01:32]} 53. Re3 {[%emt 0:00:00]} R6d7 {[%emt 0:02:03]} 54. Rce4 {[%emt 0:00:00]} g5 {[%emt 0:01:27]} 55. Re8 {[%emt 0:01:46]} Bf4 {[%emt 0:00:07]} 56. R3e4 {[%emt 0:00:11]} Rxe8 {[%emt 0:01:02]} 57. Rxe8 {[%emt 0:00:01]} Ra7 {[%emt 0:00:09]} 58. Re4 {[%emt 0:00:04]} Rd7 {[%emt 0:00:11]} 59. Re8 {[%emt 0:01:00]} Ra7 {[%emt 0:00:04]} 60. Re4 {[%emt 0:00:05] Ke5} 1/2-1/2